[Event "Niedersachsen-ch B 2024"]
[Site "Verden Aller"]
[Date "2024.01.04"]
[Round "2.34"]
[White "Rinke, Alexander"]
[Black "Frowein, Ernst Holger"]
[Result "0-1"]
[ECO "B06"]
[WhiteElo "1296"]
[BlackElo "1755"]
[Annotator "NA RC"]
[PlyCount "81"]
[EventDate "2024.01.01"]
[EventType "swiss"]
[EventCountry "GER"]
[SourceTitle "playchess.com"]
[Source "ChessBase"]
[SourceQuality "1"]
[TimeControl "40/5400+30:1800+30"]

1. e4 {[%emt 0:00:02]} d6 {[%emt 0:00:08]} 2. d4 {[%emt 0:00:11]} g6 {[%emt 0:00:12]} 3. Nf3 {[%emt 0:00:09]} Bg7 {[%emt 0:00:09]} 4. Nc3 {[%emt 0:00:13]} Nd7 {[%emt 0:01:27]} 5. Bc4 {[%emt 0:01:45]} e5 {[%emt 0:02:33]} 6. O-O Ngf6 {[%emt 0:01:36]} 7. Be3 {[%emt 0:11:18]} O-O {[%emt 0:00:44]} 8. Qd2 {[%emt 0:02:31]} Nb6 {[%emt 0:07:13]} 9. Bb3 {[%emt 0:02:14]} exd4 {[%emt 0:05:17]} 10. Bxd4 {[%emt 0:04:09]} Bg4 {[%emt 0:07:51]} 11. Ne1 {[%emt 0:04:31]} Be6 {[%emt 0:02:13]} 12. Rd1 {[%emt 0:06:14]} Nc4 {[%emt 0:07:32]} 13. Bxc4 {[%emt 0:03:19]} Bxc4 {[%emt 0:00:08]} 14. Nd3 {[%emt 0:00:25]} Re8 {[%emt 0:04:11]} 15. Qe3 {[%emt 0:22:24]} Ng4 {[%emt 0:04:21]} 16. Qf4 {[%emt 0:05:22]} Bxd4 {[%emt 0:01:19]} 17. Qxg4 {[%emt 0:00:25]} Bxc3 {[%emt 0:04:42]} 18. bxc3 {[%emt 0:00:08]} Bxa2 {[%emt 0:00:11]} 19. Nb4 {[%emt 0:34:40]} Be6 {[%emt 0:00:41]} 20. Qf3 {[%emt 0:00:00]} Qg5 {[%emt 0:02:53]} 21. Rfe1 {[%emt 0:00:00]} Qe5 {[%emt 0:14:55]} 22. Qe3 {[%emt 0:00:00]} a5 {[%emt 0:01:27]} 23. f4 {[%emt 0:00:00]} Qb5 {[%emt 0:03:13]} 24. Nd3 {[%emt 0:00:00]} a4 {[%emt 0:04:06]} 25. Rb1 {[%emt 0:00:00]} Qa5 {[%emt 0:01:34]} 26. Qd4 {[%emt 0:00:00]} a3 {[%emt 0:04:55]} 27. Rxb7 {[%emt 0:00:00]} Reb8 {[%emt 0:01:16]} 28. Rxb8+ {[%emt 0:00:00]} Rxb8 {[%emt 0:00:10]} 29. Ra1 {[%emt 0:00:00]} a2 {[%emt 0:06:35]} 30. Nb4 {[%emt 0:02:23]} Ra8 {[%emt 0:05:58]} 31. f5 {[%emt 0:02:12]} gxf5 {[%emt 0:01:47]} 32. exf5 {[%emt 0:00:23]} Qxf5 {[%emt 0:00:30]} 33. c4 {[%emt 0:00:24]} c5 {[%emt 0:00:15]} 34. Qxd6 {[%emt 0:00:26]} cxb4 {[%emt 0:00:19]} 35. Qxb4 {[%emt 0:00:14]} Qxc2 {[%emt 0:00:20]} 36. c5 {[%emt 0:00:47]} Rd8 {[%emt 0:01:18]} 37. Qe1 {[%emt 0:00:48]} Qxc5+ {[%emt 0:00:19]} 38. Kh1 {[%emt 0:00:00]} Qd4 {[%emt 0:00:43]} 39. Qg3+ {[%emt 0:00:24]} Qg7 {[%emt 0:00:38]} 40. Qf2 {[%emt 0:00:23]} Qxa1+ {[%emt 0:00:48]} 41. Qe1 {[%emt 0:30:39]} 0-1

[Event "Niedersachsen-ch B 2024"]
[Site "Verden Aller"]
[Date "2024.01.05"]
[Round "3.1"]
[White "Richter, Silas"]
[Black "Schoettker, Jochen"]
[Result "*"]
[ECO "B40"]
[WhiteElo "1614"]
[BlackElo "1875"]
[Annotator "NA RC"]
[PlyCount "61"]
[EventDate "2024.01.01"]
[EventType "swiss"]
[EventCountry "GER"]
[SourceTitle "playchess.com"]
[Source "ChessBase"]
[SourceQuality "1"]
[TimeControl "40/5400+30:1800+30"]

1. e4 {[%emt 0:00:02]} c5 {[%emt 0:00:18]} 2. Nf3 {[%emt 0:00:04]} a6 {[%emt 0:00:22]} 3. d4 {[%emt 0:00:07]} e6 {[%emt 0:00:20]} 4. Nc3 {[%emt 0:00:37]} b5 {[%emt 0:00:14]} 5. Bg5 {[%emt 0:00:53]} Qb6 {[%emt 0:00:38]} 6. d5 {[%emt 0:00:19]} d6 {[%emt 0:01:26]} 7. dxe6 {[%emt 0:04:37]} fxe6 {[%emt 1:30:42]} 8. Ne2 {[%emt 0:06:06]} h6 {[%emt 0:07:11]} 9. Be3 {[%emt 0:01:57]} g5 {[%emt 0:02:02]} 10. Qd3 {[%emt 0:02:22]} e5 {[%emt 0:07:32]} 11. Ng3 {[%emt 0:04:20]} Be6 {[%emt 0:02:35]} 12. Nf5 {[%emt 0:01:39]} Nf6 {[%emt 0:03:49]} 13. Nd2 {[%emt 0:05:03]} Bxf5 {[%emt 0:04:40]} 14. exf5 {[%emt 0:00:05]} Nc6 {[%emt 0:00:15]} 15. c3 {[%emt 0:00:38]} Qc7 {[%emt 0:03:01]} 16. Ne4 {[%emt 0:01:55]} Nxe4 {[%emt 0:00:54]} 17. Qxe4 {[%emt 0:00:04]} O-O-O {[%emt 0:00:13]} 18. c4 {[%emt 0:03:10]} Kb8 {[%emt 0:02:09]} 19. Be2 {[%emt 0:02:46]} Nd4 {[%emt 0:05:36]} 20. Bxd4 {[%emt 0:00:06]} exd4 {[%emt 0:00:15]} 21. Bf3 {[%emt 0:00:18]} d5 {[%emt 0:01:05]} 22. cxd5 {[%emt 0:01:06]} Bd6 {[%emt 0:00:05]} 23. O-O-O {[%emt 0:02:56]} Rde8 {[%emt 0:05:46]} 24. Qd3 {[%emt 0:02:37]} Qa5 {[%emt 0:06:29]} 25. Kb1 {[%emt 0:00:40]} Ka7 {[%emt 0:00:14]} 26. h4 {[%emt 0:01:40]} Qb4 {[%emt 0:01:36]} 27. hxg5 {[%emt 0:00:50]} hxg5 {[%emt 0:00:06]} 28. Rxh8 {[%emt 0:00:03]} Rxh8 {[%emt 0:00:14]} 29. Qd2 {[%emt 0:00:03]} Qxd2 {[%emt 0:09:26]} 30. Rxd2 {[%emt 0:00:07]} Kb6 {[%emt 0:36:09]} 31. Kc2 {[%emt 0:02:21]} *

[Event "Niedersachsen-ch B 2024"]
[Site "Verden Aller"]
[Date "2024.01.05"]
[Round "3.2"]
[White "Rossberg, Jonathan"]
[Black "Homann, Christoph"]
[Result "1-0"]
[ECO "B33"]
[WhiteElo "1818"]
[BlackElo "1597"]
[Annotator "NA RC"]
[PlyCount "138"]
[EventDate "2024.01.01"]
[EventType "swiss"]
[EventCountry "GER"]
[SourceTitle "playchess.com"]
[Source "ChessBase"]
[SourceQuality "1"]
[TimeControl "40/5400+30:1800+30"]

1. e4 {[%emt 0:00:02]} c5 {[%emt 0:00:07]} 2. Nf3 {[%emt 0:00:13]} Nc6 {[%emt 0:01:00]} 3. d4 {[%emt 0:00:11]} cxd4 {[%emt 0:00:09]} 4. Nxd4 {[%emt 0:00:04]} Nf6 {[%emt 0:00:35]} 5. Nc3 {[%emt 0:00:12]} e5 {[%emt 0:01:40]} 6. Ndb5 {[%emt 0:00:32]} d6 {[%emt 0:00:27]} 7. Bg5 {[%emt 0:00:13]} a6 {[%emt 0:00:45]} 8. Na3 {[%emt 0:00:05]} b5 {[%emt 0:00:18]} 9. Nd5 {[%emt 0:03:56]} Be7 {[%emt 0:01:17]} 10. Bxf6 {[%emt 0:00:10]} Bxf6 {[%emt 0:00:43]} 11. c3 {[%emt 0:00:53]} O-O {[%emt 0:02:41]} 12. Nc2 {[%emt 0:03:14]} Bg5 {[%emt 0:03:28]} 13. Nce3 {[%emt 0:05:25]} Kh8 {[%emt 0:01:21]} 14. Bd3 {[%emt 0:02:35]} Be6 {[%emt 0:08:42]} 15. O-O {[%emt 0:04:18]} Bxe3 {[%emt 0:02:34]} 16. Nxe3 {[%emt 0:00:57]} d5 {[%emt 0:00:41]} 17. exd5 {[%emt 0:08:03]} Bxd5 {[%emt 0:00:36]} 18. Bxh7 {[%emt 0:08:12]} Kxh7 {[%emt 0:02:13]} 19. Qxd5 {[%emt 0:09:54]} Qc7 {[%emt 0:08:43]} 20. Qe4+ {[%emt 0:03:26]} Kg8 {[%emt 0:01:43]} 21. Nd5 {[%emt 0:00:19]} Qd6 {[%emt 0:06:43]} 22. Rad1 $16 {[%emt 0:04:34]} Rad8 {[%emt 0:04:35]} 23. Ne3 {[%emt 0:03:31]} Qe6 {[%emt 0:01:40]} 24. Nf5 {[%emt 0:05:56]} Nb8 {[%emt 0:11:25]} 25. Rfe1 {[%emt 0:10:33]} Rxd1 {[%emt 0:38:54]} 26. Rxd1 {[%emt 0:26:02]} g6 {[%emt 0:00:00]} 27. Nh6+ {[%emt 0:00:00]} Kg7 {[%emt 0:00:00]} 28. Ng4 {[%emt 0:00:00]} Nd7 {[%emt 0:00:00]} 29. Qd5 {[%emt 0:00:00]} Qxg4 {[%emt 0:00:00]} 30. Qxd7 {[%emt 0:00:00]} Qe2 {[%emt 0:00:00]} 31. Qd2 {[%emt 0:00:00]} Qc4 {[%emt 0:00:00]} 32. a3 {[%emt 0:00:00]} Re8 {[%emt 0:00:00]} 33. h3 {[%emt 0:00:00]} Re6 {[%emt 0:00:00]} 34. Qd5 {[%emt 0:00:00]} Qc7 {[%emt 0:00:00]} 35. Re1 {[%emt 0:00:00]} Qe7 {[%emt 0:00:00]} 36. Re3 {[%emt 0:02:14]} Kf6 {[%emt 0:00:00]} 37. Qe4 {[%emt 0:00:57]} Kg7 {[%emt 0:00:07]} 38. Rd3 {[%emt 0:00:33]} Qg5 {[%emt 0:02:03]} 39. Qe3 {[%emt 0:00:42]} Qe7 {[%emt 0:00:51]} 40. Qd2 {[%emt 0:00:19]} Qc5 {[%emt 0:02:11]} 41. Rd5 {[%emt 0:03:23]} Qe7 {[%emt 0:04:17]} 42. Rd7 {[%emt 0:01:46]} Qf6 {[%emt 0:01:37]} 43. b3 {[%emt 0:04:35]} Rc6 {[%emt 0:02:07]} 44. Rd8 {[%emt 0:05:29]} Qe6 {[%emt 0:01:48]} 45. Qg5 {[%emt 0:04:00]} Qf6 {[%emt 0:10:35]} 46. Qxf6+ {[%emt 0:00:34]} Kxf6 {[%emt 0:00:20]} 47. Rd3 {[%emt 0:03:21]} e4 {[%emt 0:02:03]} 48. Re3 {[%emt 0:01:02]} Ke5 {[%emt 0:00:41]} 49. h4 {[%emt 0:04:15]} f5 {[%emt 0:00:35]} 50. g3 {[%emt 0:00:10]} f4 {[%emt 0:01:07]} 51. gxf4+ {[%emt 0:00:26]} Kxf4 {[%emt 0:00:10]} 52. Kf1 {[%emt 0:01:02]} Rd6 {[%emt 0:00:51]} 53. Ke2 {[%emt 0:00:16]} Rd5 {[%emt 0:03:52]} 54. Rg3 {[%emt 0:02:07]} Rd6 {[%emt 0:02:09]} 55. c4 {[%emt 0:00:56]} bxc4 {[%emt 0:00:58]} 56. bxc4 {[%emt 0:00:04]} Ke5 {[%emt 0:01:46]} 57. c5 {[%emt 0:02:55]} Rf6 {[%emt 0:00:48]} 58. Rc3 {[%emt 0:01:07]} Rc6 {[%emt 0:00:22]} 59. Ke3 {[%emt 0:00:10]} a5 {[%emt 0:01:53]} 60. Rc4 {[%emt 0:01:29]} Kd5 {[%emt 0:00:41]} 61. Rd4+ {[%emt 0:00:27]} Kxc5 {[%emt 0:00:15]} 62. Rxe4 {[%emt 0:00:08]} Kd5 {[%emt 0:01:07]} 63. Rd4+ {[%emt 0:00:21]} Ke5 {[%emt 0:00:17]} 64. f4+ {[%emt 0:00:20]} Kf6 {[%emt 0:00:36]} 65. Ke4 {[%emt 0:00:43]} Rc3 {[%emt 0:01:15]} 66. Ra4 {[%emt 0:00:56]} Rc5 {[%emt 0:00:12]} 67. Rd4 {[%emt 0:01:06]} Ke6 {[%emt 0:00:44]} 68. a4 {[%emt 0:01:30]} Rh5 {[%emt 0:00:23]} 69. Kf3 {[%emt 0:00:08]} Rxh4 {[%emt 0:03:19]} 1-0

[Event "Niedersachsen-ch B 2024"]
[Site "Verden Aller"]
[Date "2024.01.05"]
[Round "3.3"]
[White "Schlaetker, Christine"]
[Black "Silber, Stefanie"]
[Result "0-1"]
[ECO "B12"]
[WhiteElo "1745"]
[BlackElo "1581"]
[Annotator "NA RC"]
[PlyCount "90"]
[EventDate "2024.01.01"]
[EventType "swiss"]
[EventCountry "GER"]
[SourceTitle "playchess.com"]
[Source "ChessBase"]
[SourceQuality "1"]
[TimeControl "40/5400+30:1800+30"]

1. e4 {[%emt 0:00:03]} c6 {[%emt 0:06:43]} 2. d4 {[%emt 0:00:09]} d5 {[%emt 0:00:12]} 3. e5 {[%emt 0:00:16]} e6 {[%emt 0:02:01]} 4. Nf3 {[%emt 0:00:15]} Ne7 {[%emt 0:02:52]} 5. Be2 {[%emt 0:03:08]} Qc7 {[%emt 0:02:38]} 6. O-O {[%emt 0:01:42]} c5 {[%emt 0:10:06]} 7. c3 {[%emt 0:00:39]} Nbc6 {[%emt 0:00:31]} 8. a3 {[%emt 0:00:36]} c4 {[%emt 0:01:09]} 9. Re1 {[%emt 0:03:20]} Bd7 {[%emt 0:14:47]} 10. a4 {[%emt 0:02:43]} Na5 {[%emt 0:01:10]} 11. Nbd2 {[%emt 0:00:47]} Qb6 {[%emt 0:01:41]} 12. Rb1 {[%emt 0:11:33]} Rc8 {[%emt 0:02:19]} 13. Qc2 {[%emt 0:01:58]} Rc7 {[%emt 0:21:55]} 14. Bd1 {[%emt 0:07:11]} Nc8 {[%emt 0:02:21]} 15. Ra1 {[%emt 0:07:23]} Qc6 {[%emt 0:02:42]} 16. Re3 {[%emt 0:02:13]} Be7 {[%emt 0:11:15]} 17. b4 {[%emt 0:01:29]} cxb3 {[%emt 0:00:26]} 18. Nxb3 {[%emt 0:00:11]} Nc4 {[%emt 0:00:39]} 19. Rd3 {[%emt 0:01:33]} a5 {[%emt 0:14:33]} 20. Ng5 {[%emt 0:04:04]} Bxg5 {[%emt 0:00:00]} 21. Bxg5 {[%emt 0:00:03]} N8b6 {[%emt 0:00:00]} 22. Rh3 {[%emt 0:01:40]} h6 {[%emt 0:00:00]} 23. Nc5 {[%emt 0:00:35]} Nc8 {[%emt 0:00:00]} 24. Bh5 {[%emt 0:06:24]} Rf8 {[%emt 0:00:00]} 25. Bh4 {[%emt 0:01:38]} b6 {[%emt 0:00:00]} 26. Rf3 {[%emt 0:09:14]} Ne7 {[%emt 0:00:00]} 27. Rxf7 {[%emt 0:07:32]} Rxf7 {[%emt 0:00:39]} 28. Qh7 {[%emt 0:00:01]} g6 {[%emt 0:01:55]} 29. Bxg6 {[%emt 0:02:03]} Nxg6 {[%emt 0:00:33]} 30. Qxg6 {[%emt 0:00:58]} Nxe5 {[%emt 0:01:34]} 31. Qxh6 {[%emt 0:02:39]} bxc5 {[%emt 0:00:08]} 32. Qh8+ {[%emt 0:00:18]} Rf8 {[%emt 0:00:14]} 33. Qxe5 {[%emt 0:00:59]} Bc8 {[%emt 0:00:49]} 34. Re1 {[%emt 0:01:12]} cxd4 {[%emt 0:00:29]} 35. cxd4 {[%emt 0:00:19]} Rcf7 {[%emt 0:00:23]} 36. Qb8 {[%emt 0:01:18]} Rc7 {[%emt 0:00:56]} 37. h3 {[%emt 0:01:07]} Kd7 {[%emt 0:00:25]} 38. Bg3 {[%emt 0:00:17]} Rb7 {[%emt 0:00:33]} 39. Qe5 {[%emt 0:00:53]} Rf7 {[%emt 0:00:45]} 40. Qh5 {[%emt 0:00:55]} Re7 {[%emt 0:00:35]} 41. Bh4 {[%emt 0:32:06]} Qc3 {[%emt 0:06:46]} 42. Re3 {[%emt 0:00:00]} Rb1+ {[%emt 0:00:18]} 43. Kh2 {[%emt 0:00:00]} Qc7+ {[%emt 0:00:30]} 44. Re5 {[%emt 0:00:00]} Qc1 {[%emt 0:10:49]} 45. Bxe7 {[%emt 0:00:00]} Qf4+ {[%emt 0:00:26]} 0-1

[Event "Niedersachsen-ch B 2024"]
[Site "Verden Aller"]
[Date "2024.01.05"]
[Round "3.4"]
[White "Fels, Mattis"]
[Black "Walther, Jonas"]
[Result "*"]
[ECO "D00"]
[WhiteElo "1572"]
[BlackElo "1744"]
[Annotator "NA RC"]
[PlyCount "36"]
[EventDate "2024.01.01"]
[EventType "swiss"]
[EventCountry "GER"]
[SourceTitle "playchess.com"]
[Source "ChessBase"]
[SourceQuality "1"]
[TimeControl "40/5400+30:1800+30"]

1. d4 {[%emt 0:00:01]} Nf6 {[%emt 0:00:50]} 2. Nc3 {[%emt 0:00:06]} d5 {[%emt 0:00:17]} 3. Bf4 {[%emt 0:00:07]} e6 {[%emt 0:00:13]} 4. Nb5 {[%emt 0:00:07]} Bb4+ {[%emt 0:00:06]} 5. c3 {[%emt 0:04:59]} Ba5 {[%emt 0:00:02]} 6. Nf3 {[%emt 0:01:35]} a6 {[%emt 0:01:45]} 7. Na3 {[%emt 0:00:20]} O-O {[%emt 0:00:30]} 8. e3 {[%emt 0:00:36]} Nbd7 {[%emt 0:00:32]} 9. Bd3 {[%emt 0:01:03]} Qe7 {[%emt 0:04:57]} 10. Nc2 {[%emt 0:13:57]} c5 {[%emt 0:00:21]} 11. O-O {[%emt 1:13:09]} c4 {[%emt 0:00:35]} 12. Be2 {[%emt 0:00:12]} b5 {[%emt 0:04:27]} 13. Ne5 {[%emt 0:06:14]} Nxe5 {[%emt 0:02:49]} 14. dxe5 {[%emt 0:01:17]} Ne4 {[%emt 0:07:47]} 15. Nd4 {[%emt 0:01:49]} Bd7 {[%emt 0:02:01]} 16. Qc2 {[%emt 0:07:44]} b4 {[%emt 0:13:48]} 17. Bxc4 {[%emt 0:01:36]} bxc3 {[%emt 0:23:06]} 18. bxc3 {[%emt 0:00:21]} Rfc8 {[%emt 0:00:01]} *

[Event "Niedersachsen-ch B 2024"]
[Site "Verden Aller"]
[Date "2024.01.05"]
[Round "3.5"]
[White "Balazs, Kata"]
[Black "Junge, Julia Marie"]
[Result "*"]
[ECO "D00"]
[WhiteElo "1723"]
[BlackElo "1401"]
[Annotator "NA RC"]
[PlyCount "50"]
[EventDate "2024.01.01"]
[EventType "swiss"]
[EventCountry "GER"]
[SourceTitle "playchess.com"]
[Source "ChessBase"]
[SourceQuality "1"]
[TimeControl "40/5400+30:1800+30"]

1. d4 {[%emt 0:00:04]} d5 {[%emt 0:00:19]} 2. Nc3 {[%emt 0:00:10]} Nf6 {[%emt 0:00:48]} 3. Bf4 {[%emt 0:00:09]} a6 {[%emt 0:00:53]} 4. e3 {[%emt 0:00:22]} Bf5 {[%emt 0:00:59]} 5. f3 {[%emt 0:00:42]} e6 {[%emt 0:03:51]} 6. Qd2 {[%emt 0:02:31]} c5 {[%emt 0:00:55]} 7. g4 {[%emt 1:30:02]} Bg6 {[%emt 0:03:02]} 8. h4 {[%emt 0:00:32]} h6 {[%emt 0:00:42]} 9. h5 {[%emt 0:06:35]} Bh7 {[%emt 0:00:29]} 10. Bd3 {[%emt 0:01:57]} Bxd3 {[%emt 0:00:45]} 11. Qxd3 {[%emt 0:00:28]} c4 {[%emt 0:00:45]} 12. Qd2 {[%emt 0:00:22]} Bd6 {[%emt 0:01:49]} 13. Nge2 {[%emt 0:01:35]} Nc6 {[%emt 0:01:39]} 14. Kf2 {[%emt 0:06:59]} Qd7 {[%emt 0:04:16]} 15. Na4 {[%emt 0:05:08]} Qc7 {[%emt 0:03:53]} 16. Rag1 {[%emt 0:07:45]} b5 {[%emt 0:01:51]} 17. Nc5 {[%emt 0:01:42]} e5 {[%emt 0:01:17]} 18. Bg3 {[%emt 0:12:50]} Bxc5 {[%emt 0:01:03]} 19. dxc5 {[%emt 0:04:59]} Qe7 {[%emt 0:00:34]} 20. Qc3 {[%emt 0:04:22]} b4 {[%emt 0:00:34]} 21. Qd2 {[%emt 0:02:08]} Qxc5 {[%emt 0:00:15]} 22. Rd1 {[%emt 0:01:44]} e4 {[%emt 0:01:10]} 23. Bh4 {[%emt 0:05:24]} exf3 {[%emt 0:02:05]} 24. Kxf3 {[%emt 0:00:07]} Ne5+ {[%emt 0:00:27]} 25. Kg2 {[%emt 0:00:32]} Nexg4 {[%emt 0:00:32]} *

[Event "Niedersachsen-ch B 2024"]
[Site "Verden Aller"]
[Date "2024.01.05"]
[Round "3.6"]
[White "ter Stal, Esther"]
[Black "Schoene, Finn"]
[Result "*"]
[ECO "D02"]
[WhiteElo "1486"]
[BlackElo "1626"]
[Annotator "NA RC"]
[PlyCount "53"]
[EventDate "2024.01.01"]
[EventType "swiss"]
[EventCountry "GER"]
[SourceTitle "playchess.com"]
[Source "ChessBase"]
[SourceQuality "1"]
[TimeControl "40/5400+30:1800+30"]

1. d4 {[%emt 0:00:31]} d5 {[%emt 0:00:10]} 2. Nf3 {[%emt 0:01:18]} c6 {[%emt 0:00:17]} 3. g3 {[%emt 0:00:51]} Bf5 {[%emt 0:00:45]} 4. Bg2 {[%emt 0:01:11]} Qc8 {[%emt 0:00:43]} 5. O-O {[%emt 0:04:27]} Bh3 {[%emt 0:00:14]} 6. Re1 {[%emt 0:06:26]} Bxg2 {[%emt 0:00:08]} 7. Kxg2 {[%emt 0:00:04]} Nf6 {[%emt 0:00:09]} 8. Bf4 {[%emt 0:01:02]} Ne4 {[%emt 0:02:35]} 9. Nbd2 {[%emt 0:02:55]} f5 {[%emt 0:00:10]} 10. Ne5 {[%emt 0:03:07]} e6 {[%emt 0:02:02]} 11. e3 {[%emt 0:07:54]} Nxd2 {[%emt 0:04:26]} 12. Qh5+ {[%emt 0:18:29]} g6 {[%emt 0:00:00]} 13. Nxg6 {[%emt 0:00:16]} hxg6 {[%emt 0:00:01]} 14. Qxh8 {[%emt 0:00:11]} Qd7 {[%emt 0:00:18]} 15. Bh6 {[%emt 0:01:45]} Qf7 {[%emt 0:01:01]} 16. f3 {[%emt 0:06:58]} Nc4 {[%emt 0:01:20]} 17. e4 {[%emt 0:04:56]} Nd7 {[%emt 0:02:04]} 18. exd5 {[%emt 0:04:27]} cxd5 {[%emt 0:00:01]} 19. b3 {[%emt 0:01:45]} Ncb6 {[%emt 1:23:36]} 20. Re2 {[%emt 0:04:23]} O-O-O {[%emt 0:00:00]} 21. Bxf8 {[%emt 0:07:04]} Rxf8 {[%emt 0:00:00]} 22. Qh6 {[%emt 0:00:43]} Re8 {[%emt 0:00:00]} 23. Rae1 {[%emt 0:01:25]} Nb8 {[%emt 0:00:00]} 24. Qd2 {[%emt 0:02:28]} Nc6 {[%emt 0:00:00]} 25. Qc3 {[%emt 0:08:29]} Kd7 {[%emt 0:00:00]} 26. Qc5 {[%emt 0:01:19]} Qf6 {[%emt 0:00:00]} 27. Rd1 {[%emt 0:00:40]} *

[Event "Niedersachsen-ch B 2024"]
[Site "Verden Aller"]
[Date "2024.01.05"]
[Round "3.7"]
[White "Pac, Maksym"]
[Black "Spieker, Hans-Joachim"]
[Result "*"]
[ECO "D00"]
[WhiteElo "1416"]
[BlackElo "1719"]
[Annotator "NA RC"]
[PlyCount "40"]
[EventDate "2024.01.01"]
[EventType "swiss"]
[EventCountry "GER"]
[SourceTitle "playchess.com"]
[Source "ChessBase"]
[SourceQuality "1"]
[TimeControl "40/5400+30:1800+30"]

1. d4 {[%emt 0:00:01]} Nf6 {[%emt 0:00:03]} 2. Nc3 {[%emt 0:00:04]} d5 {[%emt 0:00:21]} 3. Bf4 {[%emt 0:00:04]} a6 {[%emt 0:00:34]} 4. e3 {[%emt 0:00:04]} g6 {[%emt 0:00:06]} 5. h4 {[%emt 0:01:41]} Bg7 {[%emt 0:02:50]} 6. Be2 {[%emt 0:01:30]} h5 {[%emt 0:02:08]} 7. Nf3 {[%emt 0:00:53]} Bf5 {[%emt 0:05:37]} 8. Ne5 {[%emt 0:03:36]} Nc6 {[%emt 0:07:05]} 9. f3 {[%emt 0:14:22]} e6 {[%emt 0:10:58]} 10. Nxc6 {[%emt 0:08:54]} bxc6 {[%emt 0:00:02]} 11. e4 {[%emt 0:00:09]} dxe4 {[%emt 0:00:21]} 12. g4 {[%emt 0:09:53]} exf3 {[%emt 0:01:02]} 13. Bxf3 {[%emt 0:00:37]} Bxg4 {[%emt 0:01:52]} 14. Bxc6+ {[%emt 0:00:41]} Nd7 {[%emt 0:02:00]} 15. Qd2 {[%emt 0:05:23]} Rb8 {[%emt 0:00:37]} 16. d5 {[%emt 0:02:29]} O-O {[%emt 0:11:11]} 17. dxe6 {[%emt 0:10:17]} Bxe6 {[%emt 0:00:10]} 18. O-O-O {[%emt 0:00:58]} Nf6 {[%emt 0:05:22]} 19. Qh2 {[%emt 0:01:41]} Qe7 {[%emt 0:02:20]} 20. Bxc7 {[%emt 0:00:53]} Ng4 {[%emt 0:02:03]} *

[Event "Niedersachsen-ch B 2024"]
[Site "Verden Aller"]
[Date "2024.01.05"]
[Round "3.8"]
[White "Rademacher, Bengt"]
[Black "Kesselhut, Pascal"]
[Result "*"]
[ECO "B13"]
[WhiteElo "1702"]
[BlackElo "1425"]
[Annotator "NA RC"]
[PlyCount "36"]
[EventDate "2024.01.01"]
[EventType "swiss"]
[EventCountry "GER"]
[SourceTitle "playchess.com"]
[Source "ChessBase"]
[SourceQuality "1"]
[TimeControl "40/5400+30:1800+30"]

1. e4 {[%emt 0:00:03]} c6 {[%emt 0:00:04]} 2. d4 {[%emt 0:00:06]} d5 {[%emt 0:00:05]} 3. exd5 {[%emt 0:00:11]} cxd5 {[%emt 0:00:10]} 4. Bd3 {[%emt 0:00:16]} Nc6 {[%emt 0:00:19]} 5. c3 {[%emt 0:00:39]} Qc7 {[%emt 0:00:44]} 6. Ne2 {[%emt 1:32:15]} Bg4 {[%emt 0:01:21]} 7. f3 {[%emt 0:04:02]} Bd7 {[%emt 0:00:49]} 8. Bf4 {[%emt 0:00:46]} e5 {[%emt 0:00:44]} 9. dxe5 {[%emt 0:02:05]} Nxe5 {[%emt 0:01:02]} 10. Bc2 {[%emt 0:03:24]} Nf6 {[%emt 0:05:46]} 11. O-O {[%emt 0:05:57]} Bd6 {[%emt 0:02:13]} 12. Kh1 {[%emt 0:16:29]} O-O-O {[%emt 0:09:54]} 13. Nd2 {[%emt 0:05:14]} Rdg8 {[%emt 0:04:40]} 14. Bxe5 {[%emt 0:03:48]} Bxe5 {[%emt 0:00:24]} 15. f4 {[%emt 0:01:16]} Bd6 {[%emt 0:01:09]} 16. Nf3 {[%emt 0:05:03]} h6 {[%emt 0:07:58]} 17. Qd4 {[%emt 0:03:50]} Re8 {[%emt 0:08:12]} 18. Qd2 {[%emt 0:06:38]} g5 {[%emt 0:06:29]} *

[Event "Niedersachsen-ch B 2024"]
[Site "Verden Aller"]
[Date "2024.01.05"]
[Round "3.9"]
[White "Goes, Carsten"]
[Black "Zweck, Gerhard"]
[Result "*"]
[ECO "B23"]
[WhiteElo "1676"]
[BlackElo "1414"]
[Annotator "NA RC"]
[PlyCount "37"]
[EventDate "2024.01.01"]
[EventType "swiss"]
[EventCountry "GER"]
[SourceTitle "playchess.com"]
[Source "ChessBase"]
[SourceQuality "1"]
[TimeControl "40/5400+30:1800+30"]

1. e4 {[%emt 0:00:23]} c5 {[%emt 0:00:12]} 2. Nc3 {[%emt 0:00:43]} d6 {[%emt 0:01:19]} 3. f4 {[%emt 0:00:06]} Nf6 {[%emt 0:00:57]} 4. Nf3 {[%emt 0:00:25]} Nc6 {[%emt 0:03:14]} 5. Bb5 {[%emt 0:00:40]} a6 {[%emt 0:03:39]} 6. Bxc6+ {[%emt 0:00:20]} bxc6 {[%emt 0:00:02]} 7. d3 {[%emt 0:00:34]} e6 {[%emt 0:02:25]} 8. O-O {[%emt 0:02:20]} Be7 {[%emt 0:00:24]} 9. Qe1 {[%emt 0:00:48]} Rb8 {[%emt 0:03:07]} 10. e5 {[%emt 0:10:25]} Nd7 {[%emt 0:03:32]} 11. Qg3 {[%emt 0:07:45]} g6 {[%emt 0:09:48]} 12. exd6 {[%emt 0:06:54]} Bxd6 {[%emt 0:01:12]} 13. Ne4 {[%emt 0:00:27]} Be7 {[%emt 0:04:41]} 14. b3 {[%emt 0:05:25]} Nf6 {[%emt 0:08:29]} 15. Bb2 {[%emt 0:09:03]} Nxe4 {[%emt 0:05:03]} 16. dxe4 {[%emt 0:00:01]} f6 {[%emt 0:00:46]} 17. f5 {[%emt 0:03:46]} Bd6 {[%emt 0:12:26]} 18. e5 {[%emt 0:01:47]} fxe5 {[%emt 0:06:20]} 19. Bxe5 {[%emt 0:01:12]} *

[Event "Niedersachsen-ch B 2024"]
[Site "Verden Aller"]
[Date "2024.01.05"]
[Round "3.11"]
[White "Berkenkamp, Matthis"]
[Black "Sanchez Tapia, Luis G."]
[Result "*"]
[ECO "A17"]
[WhiteElo "1425"]
[BlackElo "1576"]
[Annotator "NA RC"]
[PlyCount "41"]
[EventDate "2024.01.01"]
[EventType "swiss"]
[EventCountry "GER"]
[SourceTitle "playchess.com"]
[Source "ChessBase"]
[SourceQuality "1"]
[TimeControl "40/5400+30:1800+30"]

1. Nf3 {[%emt 0:00:07]} d5 {[%emt 0:00:06]} 2. g3 {[%emt 0:00:04]} g6 {[%emt 0:00:22]} 3. Bg2 {[%emt 0:00:05]} Bg7 {[%emt 0:00:16]} 4. d4 {[%emt 0:00:49]} c6 {[%emt 0:01:17]} 5. O-O {[%emt 0:01:24]} Nf6 {[%emt 0:02:58]} 6. c4 {[%emt 0:01:59]} e6 {[%emt 0:07:54]} 7. Nc3 {[%emt 0:00:47]} O-O {[%emt 1:21:07]} 8. cxd5 {[%emt 0:01:11]} exd5 {[%emt 0:02:44]} 9. Bf4 {[%emt 0:01:35]} Re8 {[%emt 0:02:56]} 10. Qc1 {[%emt 0:03:02]} Nbd7 {[%emt 0:02:47]} 11. Bh6 {[%emt 0:00:24]} Bh8 {[%emt 0:02:04]} 12. Re1 {[%emt 0:03:58]} Nf8 {[%emt 0:03:40]} 13. Bxf8 {[%emt 0:04:24]} Kxf8 {[%emt 0:00:22]} 14. e3 {[%emt 0:01:15]} a5 {[%emt 0:07:58]} 15. Na4 {[%emt 0:04:08]} Bf5 {[%emt 0:06:33]} 16. Nd2 {[%emt 0:07:46]} Qc7 {[%emt 0:04:46]} 17. Qc5+ {[%emt 0:00:58]} Kg8 {[%emt 0:00:33]} 18. Nb6 {[%emt 0:00:51]} Rad8 {[%emt 0:49:39]} 19. Nb3 {[%emt 0:05:34]} Ne4 {[%emt 0:16:31]} 20. Qxa5 {[%emt 0:00:49]} Ng5 {[%emt 0:03:41]} 21. Rec1 {[%emt 0:59:50]} *